bitfinex/quotes_ETHUSD_20241215
["timestamp","ask_amount","ask_price","bid_price","bid_amount"]
[1734247344587,3.13522,3868.2,3867.7,0.04750304]
[1734247344789,3.13522,3868.2,3867.6,0.7573]
[1734247344938,3.60779136,3868.2,3867.8,0.04747968]
[1734247345140,1.02257136,3868.2,3867.8,0.04747968]
[1734247345355,2.58529,3868.1,3867.8,0.04747968]
[1734247345560,2.58536,3868.0,3867.6,0.7573]
[1734247345760,1.02257136,3868.2,3867.6,0.7573]
[1734247345987,2.58545,3867.8,3867.1,0.7573]
[1734247346342,2.58559,3867.6,3867.2,0.04761981]
[1734247346693,0.7528,3868.0,3867.2,0.04761981]
[1734247346855,3.0,3867.9,3867.2,0.04761981]
[1734247347043,2.58565,3867.5,3867.2,0.04761981]
[1734247347242,0.55,3867.6,3867.1,0.7573]
[1734247347442,3.33817,3868.0,3867.3,0.04759646]
[1734247347666,0.55,3867.8,3867.2,0.04761981]
[1734247347850,0.55,3867.8,3867.1,0.7573]
[1734247348304,0.55,3867.8,3867.2,0.04761981]
[1734247349362,0.55,3867.8,3867.1,0.7573]
[1734247350074,3.13545,3867.8,3867.1,0.7573]
[1734247350510,3.98461528,3867.8,3867.1,0.7573]
[1734247350924,1.39916528,3867.8,3867.1,0.7573]
[1734247351160,0.55,3867.9,3867.1,0.7573]
[1734247351606,0.55,3867.9,3867.2,0.04761981]
[1734247352746,0.55,3868.0,3867.2,0.04761981]
[1734247353043,2.58544,3867.8,3867.2,0.04761981]
[1734247353251,2.5856,3867.6,3867.2,0.04761981]
[1734247353453,2.5856,3867.6,3867.1,0.7573]
[1734247353743,2.58569,3867.5,3867.1,0.7573]
[1734247354996,3.13591,3867.1,3867.0,0.625]
[1734247355160,3.449501,3867.1,3867.0,0.625]
[1734247358004,8.13152134,3867.1,3867.0,0.48828125]
[1734247358148,9.4585707,3867.1,3867.0,0.48828125]
[1734247358354,9.458395,3867.1,3867.0,0.48828125]
[1734247359940,10.52899025,3867.1,3867.0,0.48828125]
[1734247360146,3.13631,3866.5,3866.4,0.07973279]
[1734247360347,3.449941,3866.5,3866.4,0.07973279]
[1734247362475,0.863631,3866.5,3866.4,0.07973279]
[1734247362699,0.55,3866.7,3866.4,0.07973279]
[1734247362999,3.13619,3866.7,3866.4,0.02973279]
[1734247363212,0.55,3866.9,3866.4,0.02973279]
[1734247363354,3.93361,3866.5,3866.4,0.02973279]
[1734247363558,4.59322885,3866.5,3866.4,0.02973279]
[1734247369264,5.63395527,3866.5,3866.4,0.02973279]
[1734247370714,12.95406778,3866.5,3866.4,0.02973279]
[1734247370856,13.48989224,3866.5,3866.4,2.79e-06]
[1734247371056,13.65128008,3866.5,3866.4,2.79e-06]
[1734247371451,15.78791205,3866.5,3866.4,2.79e-06]
[1734247372311,15.78791205,3866.5,3864.4,0.1613317]
[1734247372312,0.55,3865.2,3864.4,0.9483317]
[1734247372455,1.04072642,3864.9,3864.4,0.9483317]
[1734247372658,0.55,3865.0,3864.4,0.9483317]
[1734247373068,0.55,3865.0,3864.5,0.0478788]
[1734247373269,0.55,3865.3,3864.6,0.787]
[1734247373557,0.55,3865.3,3864.6,0.83485541]
[1734247373780,0.55,3865.2,3864.6,0.787]
[1734247374598,0.55,3865.2,3864.4,0.1613317]
[1734247374799,0.55,3865.0,3864.5,0.787]
[1734247375138,0.55,3865.3,3864.5,0.787]
[1734247375429,0.55,3865.2,3864.5,0.787]
[1734247375630,0.55,3865.2,3864.6,0.04833693]
[1734247376087,0.55,3865.2,3864.6,0.08980083]
[1734247376528,0.55,3865.4,3864.6,0.08980083]
[1734247376700,0.51275682,3864.9,3864.6,0.08980083]
[1734247380310,0.51275682,3864.9,3864.6,0.0414639]
[1734247380627,0.55,3865.1,3864.7,0.83538846]
[1734247380841,0.55,3865.1,3864.7,0.787]
[1734247381243,3.13726,3865.1,3864.7,0.8284639]
[1734247381963,0.55,3865.1,3864.7,0.8284639]
[1734247382631,0.52608427,3864.9,3864.7,0.8284639]
[1734247385063,0.52608427,3864.9,3864.8,0.04886265]
[1734247385233,0.52608427,3864.9,3864.8,0.09032655]
[1734247385562,0.52608427,3864.9,3864.8,0.0414639]
[1734247388427,3.15296034,3866.7,3864.8,0.0414639]
[1734247388428,3.0,3865.6,3864.8,0.0414639]
[1734247388630,5.11503931,3865.7,3864.9,0.787]
[1734247388844,3.85176793,3865.6,3864.9,0.787]
[1734247389275,3.85176793,3865.6,3865.0,0.04881586]
[1734247389868,0.55,3865.5,3865.0,0.04881586]
[1734247390029,3.85176793,3865.6,3865.0,0.04881586]
[1734247390228,0.55,3865.5,3865.0,0.09027976]
[1734247392149,2.11503931,3866.1,3865.1,0.8032]
[1734247392329,0.55,3866.1,3865.1,0.8446639]
[1734247392547,0.55,3866.1,3865.2,0.04867812]
[1734247393492,3.55,3866.1,3865.2,0.09014202]
[1734247393657,4.06630996,3866.1,3865.3,0.8032]
[1734247394188,4.06630996,3866.1,3865.4,0.04863134]
[1734247394492,1.06630996,3866.1,3865.4,0.09009524]
[1734247394793,1.06630996,3866.1,3865.5,0.8032]
[1734247395299,0.51630996,3866.1,3865.6,0.04858457]
[1734247395593,0.51630996,3866.1,3865.7,0.8032]
[1734247395951,0.51630996,3866.1,3865.8,0.0485378]
[1734247396601,0.51630996,3866.1,3865.8,0.0900017]
[1734247396794,0.51630996,3866.1,3865.8,0.0414639]
[1734247397648,0.51630996,3866.1,3865.9,0.04851442]
[1734247397894,0.93065493,3866.1,3865.8,0.0414639]
[1734247398675,0.51630996,3866.1,3865.8,0.0414639]
[1734247398865,0.51630996,3866.1,3865.8,0.03693324]
[1734247399065,0.51630996,3866.1,3865.9,0.04851442]
[1734247399463,0.51630996,3866.1,3865.9,0.03693324]
[1734247401383,0.51630996,3866.1,3866.0,0.04849104]
[1734247401587,0.55,3866.6,3866.0,0.04849104]
[1734247401792,1.04074975,3866.7,3866.1,0.8032]
[1734247402160,1.04074975,3866.7,3866.2,0.0481018]
[1734247402562,1.04074975,3866.7,3866.2,0.08503504]
[1734247402785,0.52862615,3866.5,3866.2,0.08503504]
[1734247404099,0.52862615,3866.5,3866.2,0.03693324]
[1734247404826,0.52862615,3866.5,3866.3,0.04807843]
[1734247405174,0.52862615,3866.5,3866.2,0.03693324]
[1734247405357,0.52862615,3866.5,3866.4,0.04805505]
[1734247405558,0.52862615,3866.5,3866.3,0.04807843]
[1734247405792,0.52862615,3866.5,3866.4,0.04805505]
[1734247406237,0.52862615,3866.5,3866.2,0.03693324]
[1734247406400,0.52862615,3866.5,3866.4,0.04805505]
[1734247406600,0.52862615,3866.5,3866.3,0.04807843]
[1734247406808,0.52862615,3866.5,3866.4,0.04805505]
[1734247407307,0.52862615,3866.5,3866.2,0.03693324]
[1734247407723,0.55,3866.4,3866.3,0.04807843]
[1734247407881,0.99292762,3866.4,3866.3,0.04807843]
[1734247408083,0.99292762,3866.4,3866.2,0.03693324]
[1734247409193,0.55,3866.4,3866.2,0.03693324]
[1734247410236,0.52862615,3866.5,3866.2,0.03693324]
[1734247410394,0.52862615,3866.5,3866.3,0.7966]
[1734247410597,0.52862615,3866.5,3866.3,0.84467843]
[1734247410795,0.52862615,3866.5,3866.3,0.7966]
[1734247411624,0.52862615,3866.5,3866.3,0.83353324]
[1734247411807,0.52862615,3866.5,3866.4,0.04805505]
[1734247412546,0.52862615,3866.5,3866.4,0.08498829]
[1734247412732,3.38475,3867.2,3866.4,0.08498829]
[1734247412733,0.55,3867.1,3866.4,0.08498829]
[1734247413225,0.55,3867.1,3866.4,0.03693324]
[1734247413395,0.55,3867.1,3866.5,0.0476509]
[1734247413396,0.50801779,3866.8,3866.5,0.0476509]
[1734247414282,0.50801779,3866.8,3866.4,0.03693324]
[1734247414480,0.19064391,3866.7,3866.6,0.04762752]
[1734247414811,0.19064391,3866.7,3866.4,0.03693324]
[1734247415027,0.19064391,3866.7,3866.6,0.04762752]
[1734247415211,0.19064391,3866.7,3866.5,0.0476509]
[1734247415410,0.19064391,3866.7,3866.6,0.04762752]
[1734247415797,0.19064391,3866.7,3866.5,0.03693324]
[1734247416110,3.0,3867.3,3866.6,0.04754326]
[1734247416295,0.19068219,3867.2,3866.6,0.04754326]
[1734247416502,0.19068219,3867.1,3866.6,0.0844765]
[1734247416699,0.19068219,3867.0,3866.7,0.7966]
[1734247416901,0.19068219,3866.9,3866.7,1.83734975]
[1734247417202,0.55,3867.6,3866.9,0.7966]
[1734247417400,0.19066181,3867.5,3866.9,0.7966]
[1734247417615,0.19066181,3867.4,3867.1,0.7966]
[1734247417802,4.42489975,3868.1,3867.1,0.7966]
[1734247418127,2.58542,3867.9,3867.2,0.04691092]
[1734247418432,3.19071452,3867.8,3867.2,0.04691092]
[1734247418587,0.19071452,3867.7,3867.2,0.08384416]
[1734247418800,0.19071452,3867.6,3867.2,0.08384416]
[1734247419000,0.19071452,3867.5,3867.2,0.08384416]
[1734247419344,3.0,3867.8,3867.2,0.08384416]
[1734247419551,0.19065793,3867.7,3867.2,0.08384416]
[1734247419848,0.19065793,3867.6,3867.2,0.08384416]
[1734247420153,0.19065793,3867.5,3867.2,0.08384416]
[1734247420453,3.83754557,3867.8,3867.2,0.08384416]
[1734247420645,0.19064336,3867.7,3867.2,0.08384416]
[1734247421056,0.19064336,3867.6,3867.2,0.08384416]
[1734247421256,0.19064336,3867.8,3867.2,0.08384416]
[1734247421423,0.19064336,3867.7,3867.3,0.7966]
[1734247421751,0.50789594,3867.9,3867.4,0.0468642]
[1734247423052,0.50789594,3867.9,3867.5,0.7966]
[1734247423351,0.50789594,3867.9,3867.6,0.04672882]
[1734247425281,2.58546,3867.8,3867.6,0.04672882]
[1734247425436,2.58546,3867.8,3867.2,0.83353324]
[1734247425837,2.58546,3867.8,3867.3,0.04630693]
[1734247427500,2.58552,3867.7,3867.3,0.04630693]
[1734247427697,0.50789594,3867.9,3867.3,0.04630693]
[1734247428077,3.09327594,3867.9,3867.3,0.04630693]
[1734247428262,3.09327594,3867.9,3867.2,0.83353324]
[1734247428463,3.09327594,3867.9,3867.3,0.04630693]
[1734247428665,3.09327594,3867.9,3867.2,0.83353324]
[1734247428865,3.09327594,3867.9,3867.3,0.04630693]
[1734247429066,3.84509151,3867.9,3867.2,0.83353324]
[1734247429266,3.84509151,3867.9,3867.3,0.04630693]
[1734247429468,3.84509151,3867.9,3867.2,0.83353324]
[1734247429669,3.84509151,3867.9,3867.3,0.04630693]
[1734247429868,3.84509151,3867.9,3867.2,0.83353324]
[1734247430112,3.84509151,3867.9,3867.3,0.04630693]
[1734247430314,2.58545,3867.8,3867.3,0.04630693]
[1734247430612,2.58545,3867.8,3867.2,0.83353324]
[1734247431138,2.58545,3867.8,3867.3,0.04630693]
[1734247431367,0.75181557,3867.9,3867.3,0.04630693]
[1734247431557,0.51201704,3868.2,3867.2,0.83353324]
[1734247431846,0.51201704,3868.2,3867.4,0.04628357]
[1734247432011,0.51201704,3868.2,3867.2,0.83353324]
[1734247432012,3.51201704,3868.2,3867.5,0.7834]
[1734247433143,0.51201704,3868.2,3867.5,0.7834]
[1734247433318,2.58525,3868.1,3867.5,0.7834]
[1734247433700,0.51201704,3868.2,3867.5,0.7834]
[1734247433701,2.5855,3867.8,3867.5,0.7834]
[1734247434979,0.3097267,3868.0,3867.5,0.7834]
[1734247434980,2.58554,3867.7,3867.5,0.7834]
[1734247435190,2.58566,3867.5,3867.2,0.82033324]
[1734247435687,2.58578,3867.3,3867.2,0.03693324]
[1734247436778,2.58578,3867.3,3867.2,0.08136857]
[1734247437002,2.58578,3867.3,3867.2,0.03693324]
[1734247437206,2.58578,3867.3,3867.2,0.08136857]
[1734247437486,3.13563,3867.6,3867.2,0.03693324]
[1734247437634,2.58565,3867.5,3867.2,0.03693324]
[1734247440107,2.58572,3867.4,3867.2,0.03693324]
[1734247440440,2.58572,3867.4,3867.3,0.04450279]
[1734247440757,2.58576,3867.4,3867.2,0.03693324]
[1734247441055,2.58578,3867.3,3867.2,0.03693324]
[1734247441988,0.7708,3867.7,3867.2,0.03693324]
[1734247442296,2.58567,3867.5,3867.2,0.03693324]
[1734247442439,0.55,3867.7,3867.3,0.04447608]
[1734247442644,2.58553,3867.7,3867.2,0.03693324]
[1734247442853,2.58553,3867.7,3867.3,0.8042]
[1734247443101,2.58553,3867.7,3867.4,0.04445272]
[1734247444490,1.0844267,3868.0,3867.4,0.04445272]
[1734247444690,2.58538,3867.9,3867.3,0.8042]
[1734247445260,1.0844267,3868.0,3867.3,0.8042]
[1734247445576,2.58545,3867.8,3867.3,0.8042]
[1734247445897,1.06797356,3868.5,3867.6,0.8042]
[1734247446101,1.06797356,3868.5,3867.3,2.58578]
[1734247446102,2.58498,3868.5,3867.9,0.8042]
[1734247446271,0.52533462,3868.8,3867.9,0.8042]
[1734247446466,2.58492,3868.6,3867.9,0.8042]
[1734247446871,2.58492,3868.6,3868.0,0.04411908]
[1734247447196,2.920882,3868.6,3868.0,0.04411908]
[1734247447752,2.58498,3868.5,3868.0,0.04411908]
[1734247448163,0.335962,3868.6,3867.9,0.8042]
[1734247448364,2.58505,3868.4,3867.9,0.8042]
[1734247451193,2.58498,3868.5,3867.9,0.8042]
[1734247451663,0.335962,3868.6,3867.9,0.8042]
[1734247451852,2.58532,3868.0,3867.3,0.7652]
[1734247452056,2.58539,3867.9,3867.4,0.04425919]
[1734247452278,2.58539,3867.9,3867.3,0.7652]
[1734247453013,2.58553,3867.7,3867.3,0.7652]
[1734247454272,0.775,3868.1,3867.3,0.7652]
[1734247454273,3.13536,3868.0,3867.3,0.7652]
[1734247454709,2.58536,3868.0,3867.4,0.04425919]
[1734247455012,2.58536,3868.0,3867.3,0.7652]
[1734247455515,2.58536,3868.0,3867.4,0.04425919]
[1734247455725,2.58536,3868.0,3867.5,0.7652]
[1734247456028,0.36533336,3868.0,3867.5,0.7652]
[1734247456195,2.58571,3867.4,3867.3,0.7652]
[1734247456588,2.58578,3867.3,3867.2,0.03693324]
[1734247457342,6.90488,3867.3,3867.2,0.03693324]
[1734247457497,8.7981646,3867.3,3867.2,0.03693324]
[1734247457701,10.12545995,3867.3,3867.2,0.03693324]
[1734247458197,11.19343351,3867.3,3867.2,0.03693324]
[1734247459007,11.89532576,3867.3,3867.2,0.03693324]
[1734247459302,11.18042571,3867.3,3867.2,0.03693324]
[1734247460758,11.3449167,3867.3,3867.2,3.24e-06]
[1734247461055,13.48086382,3867.3,3867.2,3.24e-06]
[1734247461256,11.3449167,3867.3,3867.2,3.24e-06]
[1734247461424,13.48417054,3867.3,3867.2,3.24e-06]
[1734247461937,11.34405604,3867.3,3867.2,3.24e-06]
[1734247462247,11.86939057,3867.3,3867.2,3.24e-06]
[1734247463918,10.54260848,3867.3,3867.2,3.24e-06]
[1734247464453,9.65808709,3867.3,3867.2,3.24e-06]
[1734247465170,7.88863034,3867.3,3867.2,3.24e-06]
[1734247469792,8.43863034,3867.3,3867.2,3.24e-06]
[1734247471510,8.43551689,3867.3,3867.2,3.24e-06]
[1734247473571,2.58658,3866.1,3866.0,0.7644]
[1734247473963,2.58658,3866.1,3866.0,0.80831401]
[1734247474158,3.13658,3866.1,3866.0,0.7644]
[1734247476263,3.13658,3866.1,3864.7,3.0]
[1734247476264,2.58693,3865.6,3864.8,0.8019]
[1734247476501,2.58693,3865.6,3864.9,0.04439032]
[1734247476667,2.58693,3865.6,3865.1,0.8019]
[1734247476862,2.58693,3865.6,3865.2,0.04432017]
[1734247477099,2.58685,3865.7,3865.3,0.8019]
[1734247477280,2.58685,3865.7,3865.4,0.04427341]
[1734247478515,2.58685,3865.7,3865.5,0.8019]
[1734247478814,2.58692,3865.6,3865.5,0.8019]
[1734247483503,2.58705,3865.4,3864.4,0.8019]
[1734247483722,2.58717,3865.3,3864.5,0.04478854]
[1734247483935,2.58717,3865.3,3864.6,0.8019]
[1734247484216,2.58717,3865.3,3864.7,0.04474176]
[1734247484989,2.58717,3865.3,3864.8,0.8019]
[1734247485216,2.58698,3865.5,3864.8,0.8019]
[1734247485584,2.58698,3865.5,3864.9,0.04469499]
[1734247486110,2.58698,3865.5,3864.8,0.8019]
[1734247486480,2.58698,3865.5,3864.9,0.04469499]
[1734247486731,2.58698,3865.5,3864.9,0.8019]
[1734247486979,2.58698,3865.5,3865.0,0.0446716]
[1734247490998,3.7696,3866.1,3865.0,0.0446716]
[1734247490999,0.52804904,3865.4,3865.0,0.0446716]
[1734247492583,0.52804904,3865.4,3865.1,0.7561]
[1734247492802,0.7696,3866.1,3865.1,0.7561]
[1734247492803,2.58658,3866.1,3865.1,0.7561]
[1734247492985,2.58667,3866.0,3865.3,0.7561]
[1734247493387,2.58667,3866.0,3865.4,0.04468499]
[1734247495251,2.58667,3866.0,3865.5,0.7561]
[1734247495586,2.58667,3866.0,3865.6,0.04463824]
[1734247496002,2.58667,3866.0,3865.5,0.7561]
[1734247496383,3.1166876,3866.2,3865.6,0.04463824]
[1734247496591,0.5301676,3866.2,3865.7,0.7561]
[1734247497040,0.5301676,3866.2,3865.8,0.04444716]
[1734247497249,3.1167076,3866.2,3865.8,0.04444716]
[1734247497387,3.1167076,3866.2,3865.7,0.7561]
[1734247497790,3.1167076,3866.2,3865.8,0.04444716]
[1734247498287,3.1167076,3866.2,3865.7,0.7561]
[1734247498522,3.1167076,3866.2,3865.8,0.04444716]
[1734247498742,3.1167076,3866.2,3865.7,0.7561]
[1734247499257,3.1167076,3866.2,3865.8,0.04444716]
[1734247499587,3.1167076,3866.2,3865.7,0.7561]
[1734247500041,3.1167076,3866.2,3865.8,0.04444716]
[1734247500338,2.5866,3866.1,3865.7,0.7561]
[1734247502812,0.5301676,3866.2,3865.7,0.7561]
[1734247503321,0.5301676,3866.2,3865.9,0.7561]
[1734247505349,0.5301676,3866.2,3866.0,0.04440041]
[1734247509575,0.5301676,3866.2,3865.9,0.7561]
[1734247512718,1.0409348,3866.1,3865.5,0.8312]
[1734247512842,1.0409348,3865.6,3865.1,0.8312]
[1734247513248,1.0409348,3865.6,3865.2,0.04433619]
[1734247513568,1.0409348,3865.6,3865.1,0.8312]
[1734247514097,1.0409348,3865.6,3865.2,0.04433619]
[1734247514452,3.6278848,3865.6,3865.1,0.8312]
[1734247514851,1.0409348,3865.6,3865.2,0.04433619]
[1734247515046,2.587,3865.5,3865.2,0.04433619]
[1734247515352,2.587,3865.5,3865.1,0.8312]
[1734247517472,3.10345644,3865.5,3865.1,0.8312]
[1734247517797,0.51645644,3865.5,3865.1,0.8312]
[1734247517958,2.58718,3865.2,3864.4,0.8312]
[1734247518406,2.58718,3865.2,3864.5,0.0452002]
[1734247521007,1.0409348,3865.2,3864.5,0.0452002]
[1734247521215,2.58732,3865.0,3864.5,0.0452002]
[1734247521363,2.58732,3865.0,3864.4,0.8312]
[1734247522610,2.58732,3865.0,3864.5,0.04542259]
[1734247522967,2.58732,3865.0,3864.4,0.8312]
[1734247523667,2.58732,3865.0,3864.5,0.04543328]
[1734247525241,2.58732,3865.0,3864.4,0.8312]
[1734247525437,2.58732,3865.0,3864.6,0.04540989]
[1734247525650,2.58732,3865.0,3864.5,0.04543328]
[1734247525945,2.58732,3865.0,3864.4,0.8312]
[1734247526167,2.58732,3865.0,3864.6,0.04540989]
[1734247526488,2.58732,3865.0,3864.4,0.8312]
[1734247526786,2.58732,3865.0,3864.5,0.04543328]
[1734247527344,3.6281248,3865.2,3864.5,0.04543328]
[1734247527556,2.58719,3865.2,3864.5,0.04543328]
[1734247527948,2.58727,3865.1,3864.5,0.04543328]
[1734247529630,1.0409348,3865.4,3864.5,0.04543328]
[1734247529869,2.58731,3865.1,3864.4,0.8312]
[1734247530532,2.58735,3865.0,3864.4,0.8312]
[1734247530741,1.0409348,3865.2,3864.4,0.8312]
[1734247531278,2.58733,3865.0,3864.4,0.8312]
[1734247532060,3.18381436,3865.3,3864.4,0.8312]
[1734247532242,2.58719,3865.2,3864.5,0.04543772]
[1734247532940,0.59665436,3865.3,3864.5,0.04543772]
[1734247532941,2.58727,3865.1,3864.5,0.04543772]
[1734247535248,0.59665436,3865.3,3864.5,0.04543772]
[1734247535562,2.5872,3865.2,3864.6,0.83]
[1734247535901,2.5872,3865.2,3864.7,0.0455974]
[1734247535902,2.58728,3865.1,3864.7,0.0455974]
[1734247537967,2.58728,3865.1,3864.6,0.83]
[1734247538309,2.58728,3865.1,3864.7,0.0455974]
[1734247538811,2.58728,3865.1,3864.6,0.83]
[1734247539015,2.58736,3865.0,3864.6,0.83]
[1734247539319,2.58736,3865.0,3864.7,0.0455974]
[1734247539532,3.00514494,3865.0,3864.6,0.83]
[1734247540723,2.5875,3864.8,3863.9,0.7916]
[1734247540873,2.58732,3865.0,3863.9,0.7916]
[1734247541083,2.58732,3865.0,3864.1,0.7916]
[1734247541574,2.5874,3864.9,3864.2,0.04571438]
[1734247541999,0.19174269,3864.8,3864.2,0.04571438]
[1734247542194,0.19174269,3864.7,3864.2,0.04571438]
[1734247542507,0.19184796,3864.6,3864.2,0.04571438]
[1734247542710,0.19184796,3864.5,3864.2,0.04571438]
[1734247542895,0.19184796,3864.4,3864.2,0.04571438]
[1734247543098,2.58746,3864.8,3864.2,0.04571438]
[1734247543302,0.19184424,3864.7,3864.2,0.04571438]
[1734247543632,0.19184424,3864.6,3864.2,0.04571438]
[1734247543788,0.19184424,3864.5,3864.2,0.04571438]
[1734247544131,2.58746,3864.8,3864.2,0.04571438]
[1734247544132,0.19184424,3864.4,3864.2,0.04571438]
[1734247544291,0.19184424,3864.3,3864.2,0.04571438]
[1734247545154,2.58746,3864.8,3864.2,0.04571438]
[1734247545490,0.191874,3864.7,3864.2,0.04571438]
[1734247545695,0.191874,3864.6,3864.2,0.7916]
[1734247545912,0.191874,3864.5,3864.3,0.04569098]
[1734247546116,2.58729,3865.1,3864.4,0.7916]
[1734247546339,0.19189526,3865.0,3864.4,0.7916]
[1734247546639,0.19189526,3864.9,3864.5,0.04569766]
[1734247546849,0.19189526,3864.8,3864.5,0.04569766]
[1734247547151,0.19189526,3864.7,3864.5,0.04569766]
[1734247547439,0.19189526,3864.6,3864.5,0.04569766]
[1734247550230,0.19189526,3864.6,3864.5,0.80359766]
[1734247550529,0.19189526,3864.6,3864.5,1.16106477]
[1734247551139,3.37206,3865.4,3864.5,1.16106477]
[1734247551323,0.19200993,3865.3,3864.5,0.80359766]
[1734247551635,0.19200993,3865.2,3864.5,0.80359766]
[1734247551843,0.19200993,3865.1,3864.5,0.80359766]
[1734247552005,0.19200993,3865.0,3864.5,0.80359766]
[1734247552203,0.19200993,3864.9,3864.5,0.80359766]
[1734247552403,0.19200993,3864.8,3864.5,0.80359766]
[1734247552740,0.19200993,3864.7,3864.5,0.80359766]
[1734247552929,0.19200993,3864.6,3864.5,0.80359766]
[1734247553955,0.19200229,3864.6,3864.5,0.80359766]
[1734247556912,3.65500238,3865.3,3864.5,0.80359766]
[1734247557119,1.73553345,3865.2,3864.5,0.80359766]
[1734247557333,0.19199524,3865.1,3864.5,0.80359766]
[1734247557644,0.19199524,3865.0,3864.5,0.80359766]
[1734247557851,0.19199524,3864.9,3864.5,0.80359766]
[1734247558146,0.19199524,3864.8,3864.5,0.80359766]
[1734247558331,0.19199524,3864.7,3864.5,0.80359766]
[1734247558538,0.19199524,3864.6,3864.5,0.80359766]
[1734247560020,0.19199524,3864.6,3864.5,1.70105367]
[1734247560223,0.19199524,3864.6,3864.5,0.80359766]
[1734247560456,0.19202825,3864.6,3864.5,0.80359766]
[1734247561712,0.19202825,3864.6,3864.5,0.04569766]
[1734247562048,0.19202825,3864.6,3864.1,1.07961859]
[1734247562237,2.58748,3864.8,3863.9,2.41622789]
[1734247562238,0.19209263,3864.5,3864.2,2.24430955]
[1734247562408,3.65536238,3864.8,3864.0,1.07961859]
[1734247562409,0.19209263,3864.4,3864.0,1.07961859]
[1734247562613,0.19209263,3864.3,3864.1,2.29025601]
[1734247562915,1.81788238,3864.7,3864.2,0.8977966]
[1734247563115,5.44891454,3864.6,3864.1,0.0457645]
[1734247563355,5.44891454,3864.6,3863.9,1.87641859]
[1734247563356,1.08133919,3864.5,3864.3,0.04571771]
[1734247563520,0.19207546,3864.4,3864.2,0.04574111]
[1734247563852,0.19207546,3864.3,3863.9,0.7968]
[1734247564057,0.19207546,3864.2,3863.9,0.7968]
[1734247564260,0.19207546,3864.1,3863.9,0.7968]
[1734247564423,0.19207546,3864.0,3863.9,2.02537666]
[1734247564616,0.19207546,3864.0,3863.9,4.26958335]
[1734247565146,0.19199049,3864.0,3863.9,4.26958335]
[1734247565360,1.06788238,3864.8,3863.9,5.34920194]
[1734247565513,0.19198997,3864.7,3864.0,3.32382528]
[1734247565716,1.08113488,3864.6,3864.1,2.24420669]
[1734247565927,0.19198997,3864.5,3864.0,0.95568098]
[1734247566127,1.06788238,3864.7,3864.1,0.89765782]
[1734247566128,0.19198997,3864.4,3864.1,0.89765782]
[1734247566396,0.19198997,3864.3,3863.9,1.87641859]
[1734247566690,0.19198997,3864.2,3864.0,0.89765162]
[1734247566831,0.19198997,3864.1,3864.0,0.89765162]
[1734247567424,0.19198997,3864.1,3863.9,0.7968]
[1734247567628,1.06788238,3864.6,3864.0,0.89756513]
[1734247567927,0.19195228,3864.5,3863.9,0.7968]
[1734247568243,0.19195228,3864.4,3863.9,0.7968]
[1734247568566,0.19195228,3864.3,3863.9,0.7968]
[1734247568765,0.19195228,3864.2,3863.9,0.7968]
[1734247568970,0.19195228,3864.1,3863.9,0.7968]
[1734247569175,0.19195228,3864.0,3863.9,0.7968]
[1734247569535,0.19195228,3864.0,3863.9,1.69428942]
[1734247570074,0.19195228,3864.0,3863.9,0.89748942]
[1734247570281,0.19195228,3864.0,3863.6,1.07961859]
[1734247570437,0.19195228,3863.9,3863.7,0.89734355]
[1734247570637,3.33766,3864.5,3863.7,0.89734355]
[1734247570845,0.19185743,3864.4,3863.8,0.89732073]
[1734247571194,0.19185743,3864.3,3863.6,1.07961859]
[1734247571475,0.97564256,3864.2,3863.4,1.08961859]
[1734247571684,0.19184256,3864.1,3863.5,2.24305195]
[1734247571852,0.19184256,3864.0,3863.5,2.24305195]
[1734247572166,0.19184256,3863.9,3863.5,2.24305195]
[1734247572368,0.19184256,3863.8,3863.5,2.24305195]
[1734247572585,0.7838,3864.2,3863.5,2.24305195]
[1734247572790,0.19179489,3864.1,3863.5,2.24305195]
[1734247572939,0.19179489,3864.0,3863.6,0.89722078]
[1734247573142,0.19179489,3863.9,3863.4,0.01]
[1734247573356,0.19179489,3863.8,3863.5,2.24272923]
[1734247573564,0.7838,3864.2,3863.4,0.01]
[1734247573769,0.19177487,3864.1,3863.5,2.24245325]
[1734247574091,0.19177487,3864.0,3863.4,0.01]
[1734247574292,0.7838,3864.2,3863.5,2.2424699]
[1734247574454,0.7838,3864.2,3863.4,0.01]
[1734247574455,0.19175387,3864.1,3863.4,0.01]
[1734247574791,0.19175387,3864.0,3863.5,0.89688411]
[1734247574986,0.19175387,3863.9,3863.4,0.01]
[1734247575193,0.19175387,3863.8,3863.5,0.89687793]
[1734247575338,0.7838,3864.2,3863.4,0.01]
[1734247575535,0.19176123,3864.1,3863.4,0.01]
[1734247575773,0.19176123,3864.0,3863.4,0.01]
[1734247576078,0.19176123,3863.9,3863.4,0.01]
[1734247576375,0.19176123,3863.8,3863.4,0.01]
[1734247576587,0.19176123,3863.7,3863.4,0.01]
[1734247576781,0.7838,3864.2,3863.4,0.01]
[1734247576982,0.19173204,3864.1,3863.4,0.01]
[1734247577277,4.13995674,3864.2,3863.4,0.01]
[1734247577448,0.19170409,3864.1,3863.4,0.01]
[1734247577655,0.19170409,3864.0,3863.5,0.0462579]
[1734247577885,0.19170409,3863.9,3863.5,0.0462579]
[1734247578043,0.19170409,3863.8,3863.5,0.0462579]
[1734247578243,3.37166,3864.2,3863.5,0.0462579]
[1734247578453,0.63562332,3864.1,3863.5,0.0462579]
[1734247578780,0.19166908,3864.0,3863.5,0.0462579]
[1734247578975,0.19166908,3863.9,3863.5,0.0462579]
[1734247579178,0.19166908,3863.8,3863.5,0.0462579]
[1734247579380,0.19165706,3863.7,3863.5,0.0462579]
[1734247579556,0.7838,3864.2,3863.5,0.0462579]
[1734247579756,0.1916597,3864.1,3863.5,0.0462579]
[1734247579956,0.1916597,3864.0,3863.5,0.0462579]
[1734247580156,0.1916597,3863.9,3863.5,0.0462579]
[1734247580353,0.7838,3864.2,3863.5,0.0462579]
[1734247580560,0.19165465,3864.1,3863.5,0.0462579]
[1734247580912,0.19165465,3864.0,3863.5,0.0462579]
[1734247581063,0.19165465,3864.1,3864.0,0.8096]
[1734247581262,0.7838,3864.9,3864.0,1.8505348]
[1734247581495,0.19169701,3864.8,3864.0,0.85614205]
[1734247581664,0.19169701,3864.7,3864.0,0.85614205]
[1734247581873,0.19169701,3864.6,3864.0,1.41261659]
[1734247582094,0.19169701,3864.5,3864.0,1.41261659]
[1734247582401,1.29396763,3864.9,3864.0,1.41261659]
[1734247582402,0.19169701,3864.4,3864.0,1.41261659]